bitfinex-derivatives/quotes_BTCF0:USTF0_20250719
["timestamp","ask_amount","ask_price","bid_price","bid_amount"]
[1752903740913,0.01669614,118340.0,118330.0,2.49354764]
[1752903741214,0.23627613,118360.0,118350.0,0.3401739]
[1752903741415,0.19405323,118360.0,118350.0,3.28749746]
[1752903741619,0.02520353,118360.0,118350.0,3.58269746]
[1752903742015,0.02520353,118360.0,118350.0,3.42324294]
[1752903742216,0.19405323,118360.0,118350.0,3.42324294]
[1752903743122,0.24499323,118360.0,118350.0,3.42324294]
[1752903746922,0.24499323,118360.0,118350.0,3.58269746]
[1752903748824,0.24499323,118360.0,118350.0,3.42324294]
[1752903755528,0.24499323,118360.0,118350.0,3.56344294]
[1752903755929,0.24499323,118360.0,118350.0,3.42324294]
[1752903759226,0.24499323,118360.0,118350.0,3.46873056]
[1752903760130,0.24499323,118360.0,118350.0,3.42324294]
[1752903761735,0.28315323,118360.0,118350.0,2.93523]
[1752903762036,0.29975392,118360.0,118350.0,3.05738452]
[1752903762333,0.45920844,118360.0,118350.0,2.74377452]
[1752903762635,0.29975392,118360.0,118350.0,2.74377452]
[1752903765137,0.28283039,118360.0,118350.0,2.74882304]
[1752903765337,0.28283039,118360.0,118350.0,2.429914]
[1752903765537,0.28283039,118360.0,118350.0,2.74882304]
[1752903769740,0.26512039,118360.0,118350.0,2.74882304]
[1752903770842,0.28283039,118360.0,118350.0,2.74882304]
[1752903771041,0.11398069,118360.0,118350.0,2.74882304]
[1752903771342,0.24891039,118360.0,118350.0,2.74882304]
[1752903772541,0.24467039,118360.0,118350.0,2.74882304]
[1752903776644,0.24467039,118360.0,118350.0,2.38802304]
[1752903776945,0.24467039,118360.0,118350.0,2.74882304]
[1752903780345,0.28368039,118360.0,118350.0,2.74882304]
[1752903780747,0.28369405,118360.0,118350.0,2.74882304]
[1752903781047,0.28369405,118360.0,118350.0,2.57995904]
[1752903781547,0.28369405,118360.0,118350.0,2.74882304]
[1752903783656,0.28369405,118360.0,118350.0,2.26105]
[1752903783850,0.28369405,118360.0,118350.0,2.74882304]
[1752903784447,0.28369405,118360.0,118350.0,1.98667904]
[1752903784653,0.61996054,118360.0,118350.0,1.62916]
[1752903784851,0.61996054,118360.0,118350.0,1.855]
[1752903785150,0.61996054,118360.0,118350.0,2.01445452]
[1752903785345,0.46050602,118360.0,118350.0,2.01445452]
[1752903787756,0.61996054,118360.0,118350.0,2.01445452]
[1752903787956,0.46050602,118360.0,118350.0,2.01445452]
[1752903790159,0.3010515,118360.0,118350.0,2.01445452]
[1752903790358,0.46050602,118360.0,118350.0,2.01445452]
[1752903797152,0.46050602,118360.0,118350.0,1.855]
[1752903797355,0.61996054,118360.0,118350.0,2.01445452]
[1752903797659,0.46050602,118360.0,118350.0,2.01445452]
[1752903803467,0.46050602,118360.0,118350.0,2.03753452]
[1752903806469,0.46050602,118360.0,118350.0,1.87808]
[1752903806668,0.46050602,118360.0,118350.0,2.03753452]
[1752903807272,0.82130602,118360.0,118350.0,2.03753452]
[1752903809576,0.82130602,118360.0,118350.0,1.87808]
[1752903809876,0.82130602,118360.0,118350.0,2.03753452]
[1752903811069,0.46050602,118360.0,118350.0,2.03753452]
[1752903816476,0.46050602,118360.0,118350.0,2.04991452]
[1752903816879,0.3010515,118360.0,118350.0,2.04991452]
[1752903817078,0.46050602,118360.0,118350.0,2.04991452]
[1752903817370,0.46050602,118360.0,118350.0,2.41071452]
[1752903820286,0.46050602,118360.0,118350.0,2.25126]
[1752903820486,0.46050602,118360.0,118350.0,2.41071452]
[1752903820983,0.46050602,118360.0,118350.0,2.25126]
[1752903821180,0.46050602,118360.0,118350.0,2.41071452]
[1752903822685,0.46050602,118360.0,118350.0,1.24235452]
[1752903828888,0.3010515,118360.0,118350.0,1.24235452]
[1752903829090,0.46050602,118360.0,118350.0,1.24235452]
[1752903829988,0.46050602,118360.0,118350.0,0.88155452]
[1752903830194,0.46050602,118360.0,118350.0,1.27545452]
[1752903834595,0.46050602,118360.0,118350.0,1.116]
[1752903834897,0.46050602,118360.0,118350.0,1.27545452]
[1752903838896,0.46050602,118360.0,118350.0,0.91465452]
[1752903839197,0.46050602,118360.0,118350.0,1.27545452]
[1752903840095,0.2389615,118360.0,118350.0,1.44431852]
[1752903840295,0.2028215,118360.0,118350.0,1.60377304]
[1752903842898,0.1680915,118360.0,118350.0,1.60377304]
[1752903843797,0.1680915,118360.0,118350.0,1.89897304]
[1752903845697,0.15147715,118360.0,118350.0,1.89897304]
[1752903845896,0.16813151,118360.0,118350.0,1.89897304]
[1752903848602,0.15147715,118360.0,118350.0,1.9292686]
[1752903852203,0.15147715,118360.0,118350.0,1.89897304]
[1752903852503,0.15147715,118360.0,118350.0,2.25977304]
[1752903852704,0.15147715,118360.0,118350.0,1.53817304]
[1752903852905,0.15147715,118360.0,118350.0,2.25977304]
[1752903853205,0.15147715,118360.0,118350.0,1.940864]
[1752903853404,0.15147715,118360.0,118350.0,2.25977304]
[1752903854805,0.01735745,118360.0,118350.0,2.25977304]
[1752903855005,0.18620715,118360.0,118350.0,2.25977304]
[1752903855806,0.01735745,118360.0,118350.0,1.9948686]
[1752903856008,0.18620715,118360.0,118350.0,1.9948686]
[1752903859005,0.01735745,118360.0,118350.0,1.9948686]
[1752903859203,0.18620715,118360.0,118350.0,1.83541408]
[1752903859409,0.18620715,118360.0,118350.0,1.9948686]
[1752903860410,0.18620715,118360.0,118350.0,2.04035622]
[1752903861209,0.18620715,118360.0,118350.0,1.9948686]
[1752903861510,0.18620715,118360.0,118350.0,2.33555622]
[1752903862108,0.18620715,118360.0,118350.0,2.4302686]
[1752903862309,0.18620715,118360.0,118350.0,2.2900686]
[1752903863310,0.18620715,118360.0,118350.0,2.33555622]
[1752903863510,0.18620715,118360.0,118350.0,1.74891622]
[1752903863712,0.18620715,118360.0,118350.0,2.33399622]
[1752903864613,0.18620715,118360.0,118350.0,2.2885086]
[1752903871917,0.23631715,118360.0,118350.0,2.2885086]
[1752903872820,0.06746745,118360.0,118350.0,2.2885086]
[1752903873522,0.23631715,118360.0,118350.0,2.2885086]
[1752903873821,0.06746745,118360.0,118350.0,2.2885086]
[1752903874021,0.06746745,118360.0,118350.0,2.33399622]
[1752903874321,0.23631715,118360.0,118350.0,2.30370066]
[1752903877423,0.06746745,118360.0,118350.0,2.30370066]
[1752903877722,0.23631715,118360.0,118350.0,2.30370066]
[1752903885029,0.06746745,118360.0,118350.0,2.30370066]
[1752903885231,0.06746745,118360.0,118350.0,3.47190066]
[1752903885831,0.06746745,118360.0,118350.0,2.75030066]
[1752903886030,0.06746745,118360.0,118350.0,3.47190066]
[1752903886726,0.23631715,118360.0,118350.0,3.47190066]
[1752903887538,0.06746745,118360.0,118350.0,3.47190066]
[1752903888733,0.28091715,118360.0,118350.0,2.88682066]
[1752903888937,0.28091715,118360.0,118350.0,3.46942066]
[1752903889335,0.28091715,118360.0,118350.0,2.36358762]
[1752903889539,0.28091715,118360.0,118350.0,3.27430614]
[1752903889934,0.44037167,118360.0,118350.0,2.36358762]
[1752903890141,0.45691215,118360.0,118350.0,3.02685452]
[1752903891137,0.45691215,118360.0,118350.0,2.73165452]
[1752903891543,0.45691215,118360.0,118350.0,2.14925452]
[1752903891743,0.45691215,118360.0,118350.0,2.73173452]
[1752903892445,0.45691215,118360.0,118350.0,2.37093452]
[1752903892947,0.45691215,118360.0,118350.0,2.53979852]
[1752903895246,0.29745763,118360.0,118350.0,2.53979852]
[1752903898350,0.29745763,118360.0,118350.0,2.17899852]
[1752903898650,0.29745763,118360.0,118350.0,2.53979852]
[1752903899149,0.29745763,118360.0,118350.0,2.69925304]
[1752903899545,0.25285763,118360.0,118350.0,3.06005304]
[1752903900652,0.26027763,118360.0,118350.0,3.06005304]
[1752903903054,0.26027763,118360.0,118350.0,3.35525304]
[1752903905952,0.24292018,118360.0,118350.0,3.35525304]
[1752903906257,0.25999164,118360.0,118350.0,3.35525304]
[1752903910259,0.25999164,118360.0,118350.0,3.036344]
[1752903910459,0.25999164,118360.0,118350.0,3.35525304]
[1752903910853,0.25999164,118360.0,118350.0,3.036344]
[1752903911056,0.25999164,118360.0,118350.0,3.35525304]
[1752903915663,0.27627164,118360.0,118350.0,3.35525304]
[1752903916161,0.29768164,118360.0,118350.0,3.35525304]
[1752903917258,0.29768164,118360.0,118350.0,2.60390904]
[1752903917560,0.29768164,118360.0,118350.0,3.19495852]
[1752903917865,0.29768164,118360.0,118350.0,3.02609452]
[1752903919964,0.29768164,118360.0,118350.0,3.19495852]
[1752903920665,0.29768164,118360.0,118350.0,2.89975852]
[1752903921465,0.45713616,118360.0,118350.0,2.73041452]
[1752903921765,0.29768164,118360.0,118350.0,2.73041452]
[1752903921965,0.45713616,118360.0,118350.0,2.73041452]
[1752903922264,0.29768164,118360.0,118350.0,2.73041452]
[1752903922865,0.45713616,118360.0,118350.0,2.21016]
[1752903923062,0.29768164,118360.0,118350.0,2.36961452]
[1752903923263,0.45713616,118360.0,118350.0,2.36961452]
[1752903924667,0.45713616,118360.0,118350.0,2.53847852]
[1752903925066,0.45713616,118360.0,118350.0,2.379024]
[1752903925267,0.45713616,118360.0,118350.0,2.53847852]
[1752903926765,0.45713616,118360.0,118350.0,2.36961452]
[1752903930272,0.29768164,118360.0,118350.0,2.36961452]
[1752903930571,0.45713616,118360.0,118350.0,2.36961452]
[1752903935075,0.45713616,118360.0,118350.0,2.00881452]
[1752903935961,0.61659068,118360.0,118350.0,1.2682]
[1752903936271,0.97739068,118360.0,118350.0,1.8494]
[1752903937171,0.97739068,118360.0,118350.0,2.00885452]
[1752903937367,0.97739068,118360.0,118350.0,1.8494]
[1752903938777,0.97739068,118360.0,118350.0,2.00885452]
[1752903941477,0.65848164,118360.0,118350.0,1.8494]
[1752903941672,0.97739068,118360.0,118350.0,2.00885452]
[1752903942578,0.81793616,118360.0,118350.0,2.00885452]
[1752903943777,0.45713616,118360.0,118350.0,2.00885452]
[1752903943979,0.45713616,118360.0,118350.0,1.8494]
[1752903944181,0.45713616,118360.0,118350.0,2.00885452]
[1752903947479,0.45713616,118360.0,118350.0,1.8494]
[1752903947680,0.61659068,118360.0,118350.0,1.8494]
[1752903948077,0.61659068,118360.0,118350.0,0.1]
[1752903948377,0.61659068,118360.0,118350.0,0.84065452]
[1752903948684,0.61659068,118360.0,118350.0,0.6812]
[1752903951383,0.61659068,118360.0,118350.0,0.84065452]
[1752903954386,0.97739068,118360.0,118350.0,0.84065452]
[1752903958087,0.97739068,118360.0,118350.0,0.6812]
[1752903958283,0.97739068,118360.0,118350.0,0.84065452]
[1752903959290,0.65848164,118360.0,118350.0,0.84065452]
[1752903959492,0.97739068,118360.0,118350.0,0.84065452]
[1752903960893,0.65848164,118360.0,118350.0,0.84065452]
[1752903961193,0.97739068,118360.0,118350.0,0.84065452]
[1752903965095,0.61659068,118360.0,118350.0,0.84065452]
[1752903965291,0.97739068,118360.0,118350.0,0.6812]
[1752903965895,0.97739068,118360.0,118350.0,0.84065452]
[1752903966494,0.2600482,118340.0,118330.0,0.52508121]
[1752903966691,0.4360432,118340.0,118330.0,0.62025452]
[1752903966894,0.59549772,118340.0,118330.0,1.20141452]
[1752903967095,0.4360432,118340.0,118330.0,1.20141452]
[1752903967790,0.61251158,118340.0,118330.0,0.4608]
[1752903967988,0.2051525,118330.0,118320.0,1.57468762]
[1752903968192,0.4360575,118330.0,118320.0,2.26981452]
[1752903968497,0.4360575,118330.0,118320.0,2.42926904]
[1752903968695,0.4360575,118330.0,118320.0,2.36981452]
[1752903969092,0.4360575,118330.0,118320.0,2.52926904]
[1752903969498,0.4370575,118330.0,118320.0,1.2894]
[1752903969699,0.4370575,118330.0,118320.0,1.93001452]
[1752903970991,0.50472018,118330.0,118320.0,1.93005452]
[1752903971592,0.4370575,118330.0,118320.0,1.93005452]
[1752903972495,0.42051702,118330.0,118320.0,1.93005452]
[1752903972695,0.43725447,118330.0,118320.0,1.93005452]
[1752903974108,0.43625447,118330.0,118320.0,1.92005452]
[1752903974308,0.43625447,118330.0,118320.0,1.7606]
[1752903974711,0.43625447,118330.0,118320.0,1.92005452]
[1752903976218,0.50239498,118330.0,118320.0,1.92005452]
[1752903976712,0.86319498,118330.0,118320.0,1.7606]
[1752903976917,0.86319498,118330.0,118320.0,1.92005452]
[1752903979420,0.70374046,118330.0,118320.0,1.92005452]
[1752903979622,0.86319498,118330.0,118320.0,1.92005452]
[1752903983923,0.86317162,118330.0,118320.0,1.92005452]
[1752903984321,0.86317162,118330.0,118320.0,1.92105452]
[1752903985522,0.86317162,118330.0,118320.0,1.7616]
[1752903985721,0.86317162,118330.0,118320.0,1.92105452]
[1752903994429,0.50237162,118330.0,118320.0,1.92105452]
[1752903996130,0.86317162,118330.0,118320.0,1.92105452]
[1752903997731,0.50237162,118330.0,118320.0,1.92105452]
[1752903998231,0.86317162,118330.0,118320.0,1.7616]
[1752903998433,0.86317162,118330.0,118320.0,1.92105452]
[1752903998632,0.86317162,118330.0,118320.0,1.7616]
[1752904005435,0.92389958,118330.0,118320.0,1.7616]
[1752904008237,0.92389958,118330.0,118320.0,1.76152]
[1752904008738,0.86317162,118330.0,118320.0,1.76152]
[1752904009440,0.7037171,118330.0,118320.0,1.76152]
[1752904009840,0.86317162,118330.0,118320.0,1.76152]
[1752904014244,0.92389958,118330.0,118320.0,1.76152]
[1752904014445,0.86317162,118330.0,118320.0,1.76152]
[1752904015547,0.86317162,118330.0,118320.0,0.59312]
[1752904023347,1.02262614,118330.0,118320.0,0.5388795]
[1752904023547,1.02262614,118330.0,118320.0,0.3439359]
[1752904023751,1.02262614,118330.0,118320.0,0.1826886]
[1752904023950,1.02262614,118330.0,118320.0,0.132325]
[1752904024250,1.02262614,118330.0,118320.0,0.036772]
[1752904027659,0.66182614,118330.0,118320.0,0.036772]
[1752904027863,1.02262614,118330.0,118320.0,0.036772]
[1752904030359,0.66182614,118330.0,118320.0,0.036772]
[1752904030558,1.02262614,118330.0,118320.0,0.036772]
[1752904032062,1.02262614,118330.0,118320.0,0.0081996]
[1752904032359,0.2530367,118320.0,118310.0,0.26810356]
[1752904032549,0.59559983,118320.0,118310.0,0.84902356]
[1752904032754,0.95639983,118320.0,118310.0,0.84902356]
[1752904033864,0.95739983,118320.0,118310.0,0.86502356]
[1752904034165,0.63849079,118320.0,118310.0,0.86502356]
[1752904034353,0.95839983,118320.0,118310.0,0.87202356]
[1752904038376,0.95845442,118320.0,118310.0,0.87202356]
[1752904038878,0.59765442,118320.0,118310.0,0.87202356]
[1752904039077,0.95845442,118320.0,118310.0,0.87202356]
[1752904042882,0.95845442,118320.0,118310.0,0.71256904]
[1752904043080,0.95845442,118320.0,118310.0,0.87202356]
[1752904043277,0.95845442,118320.0,118310.0,0.71256904]
[1752904043777,0.95845442,118320.0,118310.0,0.87202356]
[1752904044577,0.95845442,118320.0,118310.0,0.87984356]
[1752904045586,0.95845442,118320.0,118310.0,0.88070356]
[1752904045783,0.95845442,118320.0,118310.0,0.72124904]
[1752904045980,0.95845442,118320.0,118310.0,0.88070356]
[1752904046485,0.95845442,118320.0,118310.0,0.72124904]
[1752904051691,0.59765442,118320.0,118310.0,0.72124904]
[1752904051883,0.95845442,118320.0,118310.0,0.72124904]
[1752904052190,0.95845907,118320.0,118310.0,0.72124904]
[1752904055393,0.59765907,118320.0,118310.0,0.72124904]
[1752904055597,0.95845907,118320.0,118310.0,0.72124904]
[1752904056393,0.59765907,118320.0,118310.0,0.72124904]
[1752904060397,0.95845907,118320.0,118310.0,0.72124904]
[1752904068393,0.54848003,118320.0,118310.0,0.88613356]
[1752904068598,0.01651346,118350.0,118340.0,0.06559]
[1752904068798,0.27994076,118360.0,118350.0,0.08638]
[1752904069103,0.2192128,118360.0,118350.0,0.87549842]
[1752904069302,0.2192128,118360.0,118350.0,1.03495294]
[1752904070604,0.2110628,118360.0,118350.0,1.03495294]
[1752904070802,0.1159197,118360.0,118350.0,1.03495294]
[1752904071195,0.2954797,118370.0,118360.0,0.1688497]
[1752904071399,0.2954797,118370.0,118360.0,1.42907874]
[1752904072101,0.3484097,118370.0,118360.0,1.42907874]
[1752904072697,0.3564097,118370.0,118360.0,1.42907874]
[1752904072899,0.3564097,118370.0,118360.0,1.33637519]
[1752904073711,0.3654097,118370.0,118360.0,1.33737519]
[1752904074002,0.3654097,118370.0,118360.0,1.33895519]
[1752904074203,0.3654097,118370.0,118360.0,1.34420519]
[1752904082407,0.3654097,118370.0,118360.0,1.44420519]
[1752904082905,0.2519366,118370.0,118360.0,1.73940519]
[1752904083101,0.017,118370.0,118360.0,1.60315382]
[1752904083306,0.1843254,118370.0,118360.0,1.60315382]
[1752904083504,0.1843254,118370.0,118360.0,1.44420519]
[1752904084409,0.2480654,118370.0,118360.0,1.44420519]
[1752904086608,0.2480654,118370.0,118360.0,1.73940519]
[1752904092913,0.2480654,118370.0,118360.0,2.05726525]
[1752904093913,0.2874654,118370.0,118360.0,1.89832902]
[1752904094212,0.2874654,118370.0,118360.0,1.72789932]
[1752904094412,0.2874654,118370.0,118360.0,1.89674902]
[1752904094914,0.2874654,118370.0,118360.0,1.73782877]
[1752904099718,0.2874654,118370.0,118360.0,1.57887656]
[1752904104124,0.2874654,118370.0,118360.0,1.28367656]
[1752904104318,0.2874654,118370.0,118360.0,1.44262877]
[1752904106927,0.2874654,118370.0,118360.0,1.08182877]
[1752904107226,0.2874654,118370.0,118360.0,1.44262877]
[1752904108128,0.2874654,118370.0,118360.0,1.08182877]
[1752904108425,0.2874654,118370.0,118360.0,1.44262877]
[1752904109229,0.2874654,118370.0,118360.0,1.47302368]
[1752904110528,0.2874654,118370.0,118360.0,2.64114368]
[1752904112327,0.2874654,118370.0,118360.0,1.73282177]
[1752904112532,0.2874654,118370.0,118360.0,2.43604907]
[1752904112734,0.2874654,118370.0,118360.0,2.36879221]
[1752904114835,0.2874654,118370.0,118360.0,2.00799221]
[1752904115235,0.44641761,118370.0,118360.0,2.00799221]
[1752904115535,0.44641761,118370.0,118360.0,1.84904]
[1752904115936,0.51416223,118370.0,118360.0,1.74904]
[1752904116538,0.51416223,118370.0,118360.0,1.16912]
[1752904116737,0.51416223,118370.0,118360.0,1.74904]
[1752904117333,0.87496223,118370.0,118360.0,1.74904]
[1752904117638,1.04393023,118370.0,118360.0,1.16912]
[1752904117839,1.04393023,118370.0,118360.0,1.74904]
[1752904118639,1.06082566,118370.0,118360.0,1.74904]
[1752904118938,1.06088491,118370.0,118360.0,1.90805146]
[1752904119134,1.06088491,118370.0,118360.0,1.74904]
[1752904119339,1.06088491,118370.0,118360.0,1.90805146]
[1752904120641,0.89191691,118370.0,118360.0,1.90805146]
[1752904122943,0.89191691,118370.0,118360.0,1.74904]
[1752904123242,0.89191691,118370.0,118360.0,1.90805146]
[1752904125940,0.89191691,118370.0,118360.0,1.74904]
[1752904126342,0.89191691,118370.0,118360.0,1.7256262]
[1752904126537,0.89191691,118370.0,118360.0,1.6817813]
[1752904126843,0.89191691,118370.0,118360.0,1.6426072]
[1752904127039,0.89191691,118370.0,118360.0,0.3953645]
[1752904127342,0.89191691,118370.0,118360.0,0.2773412]
[1752904128141,0.89191691,118370.0,118360.0,0.2214628]
[1752904128343,0.89191691,118370.0,118360.0,0.1763936]
[1752904128533,0.89191691,118370.0,118360.0,0.1078159]
[1752904128738,0.89191691,118370.0,118360.0,0.0734929]
[1752904128942,0.89191691,118370.0,118360.0,0.0378286]
[1752904129143,0.2094897,118360.0,118350.0,0.15901146]
[1752904129437,0.95121262,118360.0,118350.0,0.70224676]
[1752904130337,0.95121262,118360.0,118350.0,0.5432353]
[1752904130338,0.95321262,118360.0,118350.0,0.5432353]
[1752904130846,0.95421262,118360.0,118350.0,0.5432353]
[1752904134753,0.95421262,118360.0,118350.0,0.70224676]
[1752904136049,0.95421262,118360.0,118350.0,0.5432353]
[1752904142352,0.59341262,118360.0,118350.0,0.5432353]
[1752904142548,0.95421262,118360.0,118350.0,0.5432353]
[1752904145252,0.95421262,118360.0,118350.0,0.73649676]
[1752904145451,0.95421262,118360.0,118350.0,0.74155676]
[1752904147557,0.95421262,118360.0,118350.0,0.5825453]
[1752904147756,0.95421262,118360.0,118350.0,0.74155676]
[1752904153660,1.01494058,118360.0,118350.0,0.74155676]
[1752904153958,0.65414058,118360.0,118350.0,0.74155676]
[1752904154158,1.01494058,118360.0,118350.0,0.74155676]
[1752904154660,0.95421262,118360.0,118350.0,0.74155676]
[1752904155861,0.95421262,118360.0,118350.0,0.5825453]
[1752904156062,0.95421262,118360.0,118350.0,0.74155676]
[1752904156762,0.95421262,118360.0,118350.0,0.5825453]
[1752904157163,0.95421262,118360.0,118350.0,0.74155676]
[1752904157563,0.95421262,118360.0,118350.0,0.5825453]
[1752904157763,0.59341262,118360.0,118350.0,0.5825453]
[1752904157964,0.95421262,118360.0,118350.0,0.5825453]
[1752904158163,1.01494058,118360.0,118350.0,0.5825453]
[1752904158462,1.01494058,118360.0,118340.0,0.55404449]
[1752904158463,0.01103,118340.0,118320.0,1.58306491]
[1752904158673,0.58818812,118340.0,118330.0,0.61735]
[1752904158966,0.78942218,118340.0,118330.0,0.87636146]
[1752904159366,0.78942218,118340.0,118330.0,0.6796]
[1752904159367,1.15022218,118340.0,118330.0,0.6796]
[1752904159564,1.15022218,118340.0,118330.0,0.5796]
[1752904160064,0.2143825,118330.0,118320.0,1.33429146]
[1752904160260,0.46077357,118330.0,118320.0,2.02185146]
[1752904162367,0.46177357,118330.0,118320.0,2.02885146]
[1752904164169,0.46177357,118330.0,118320.0,2.03885146]
[1752904166069,0.46177357,118330.0,118320.0,2.04451146]
[1752904166568,0.46177357,118330.0,118320.0,2.04749146]
[1752904169169,0.30276211,118330.0,118320.0,2.04749146]
[1752904169470,0.46177357,118330.0,118320.0,2.04749146]
[1752904170467,0.30276211,118330.0,118320.0,2.04749146]
[1752904170667,0.46177357,118330.0,118320.0,1.88848]
[1752904170867,0.46177357,118330.0,118320.0,2.04749146]
[1752904172472,0.46177357,118330.0,118320.0,1.46789146]
[1752904172771,0.46177357,118330.0,118320.0,2.04741146]
[1752904174776,0.30276211,118330.0,118320.0,2.04741146]
[1752904174974,0.46177357,118330.0,118320.0,2.04741146]
[1752904175271,0.46177357,118330.0,118320.0,0.87913146]
[1752904175476,0.46177357,118330.0,118320.0,0.91692146]
[1752904181782,0.30276211,118330.0,118320.0,0.91692146]
[1752904181981,0.46177357,118330.0,118320.0,0.91692146]
[1752904182284,0.46177357,118330.0,118320.0,1.07593292]
[1752904183180,0.46177357,118330.0,118320.0,0.91692146]
[1752904197095,0.30276211,118330.0,118320.0,0.91692146]
[1752904197298,0.30276211,118330.0,118320.0,1.07593292]
[1752904197496,0.24624211,118330.0,118320.0,1.43673292]
[1752904197796,0.18642211,118330.0,118320.0,1.60563962]
[1752904198197,0.18642211,118330.0,118320.0,1.2876167]
[1752904198400,0.18642211,118330.0,118320.0,1.60563962]
[1752904201204,0.18642211,118330.0,118320.0,1.43673292]
[1752904201403,0.21147211,118330.0,118320.0,1.60563962]
[1752904205006,0.21147211,118330.0,118320.0,1.2876167]
[1752904205201,0.24699211,118330.0,118320.0,1.60563962]
[1752904206204,0.24699211,118330.0,118320.0,1.43673292]
[1752904206508,0.46102357,118330.0,118320.0,0.89292146]
[1752904207806,0.46102357,118330.0,118320.0,0.73391]
[1752904208105,0.46102357,118330.0,118320.0,0.89292146]
[1752904209107,0.46102357,118330.0,118320.0,0.73391]
[1752904209309,0.46102357,118330.0,118320.0,0.89292146]
[1752904212108,0.46102357,118330.0,118320.0,0.73391]
[1752904212502,0.46102357,118330.0,118320.0,0.89292146]
[1752904220012,0.46102357,118330.0,118320.0,0.73391]
[1752904220313,0.46102357,118330.0,118320.0,0.89292146]
[1752904225317,0.30201211,118330.0,118320.0,0.89292146]
[1752904225517,0.46102357,118330.0,118320.0,0.89292146]
[1752904228220,0.30201211,118330.0,118320.0,0.89292146]
[1752904228418,0.46102357,118330.0,118320.0,0.89292146]
[1752904237227,0.46102357,118330.0,118320.0,0.73391]
[1752904237530,0.46102357,118330.0,118320.0,0.89292146]
[1752904238429,0.46102357,118330.0,118320.0,0.73391]
[1752904238723,0.46102357,118330.0,118320.0,0.15479]
[1752904239130,0.46102357,118330.0,118320.0,0.73371]
[1752904240233,0.46102357,118330.0,118320.0,0.73271]
[1752904240627,0.46002357,118330.0,118320.0,0.72571]
[1752904240833,0.46002357,118330.0,118320.0,0.89072146]
[1752904241533,0.46002357,118330.0,118320.0,0.73171]
[1752904244637,0.46002357,118330.0,118320.0,0.89072146]
[1752904246539,0.46002357,118330.0,118320.0,0.73171]
[1752904248739,0.46002357,118330.0,118320.0,0.89072146]
[1752904250539,0.82082357,118330.0,118320.0,0.31180146]
[1752904250735,0.82082357,118330.0,118320.0,0.73167]
[1752904251534,0.97983503,118330.0,118320.0,0.12883]
[1752904251736,0.97983503,118330.0,118320.0,0.5627011]
[1752904252040,0.97983503,118330.0,118320.0,0.5401799]
[1752904252241,0.97983503,118330.0,118320.0,0.5064798]
[1752904252538,0.2856167,118320.0,118310.0,0.22152327]
[1752904252728,0.82195777,118320.0,118310.0,0.90040327]
[1752904252929,0.82195777,118320.0,118310.0,0.91285327]
[1752904253136,0.82195777,118320.0,118310.0,0.91661327]
[1752904253639,0.82195777,118320.0,118310.0,0.92261327]
[1752904255641,0.82195777,118320.0,118310.0,0.92361327]
[1752904255841,0.46115777,118320.0,118310.0,0.92361327]
[1752904256642,0.82195777,118320.0,118310.0,0.92361327]
[1752904256836,0.46115777,118320.0,118310.0,0.92361327]
[1752904257043,0.82195777,118320.0,118310.0,0.92361327]
[1752904257240,0.82195777,118320.0,118310.0,0.76084181]
[1752904257449,0.98096923,118320.0,118310.0,0.74839181]
[1752904257737,0.98096923,118320.0,118310.0,0.80740327]
[1752904257937,0.98096923,118320.0,118310.0,0.64839181]
[1752904258141,0.98096923,118320.0,118310.0,0.6340316]
[1752904259042,0.98096923,118320.0,118310.0,0.61538]
[1752904259844,0.98096923,118320.0,118310.0,0.60938]
[1752904260143,0.98396923,118320.0,118310.0,0.60938]
[1752904260442,0.66594631,118320.0,118310.0,0.60938]
[1752904260641,0.66594631,118320.0,118310.0,0.76839146]
[1752904260642,0.98396923,118320.0,118310.0,0.76839146]
[1752904260842,0.98796923,118320.0,118310.0,0.76739146]
[1752904261042,0.98796923,118320.0,118310.0,0.70838]
[1752904261243,0.98796923,118320.0,118310.0,0.86739146]
[1752904261445,0.66994631,118320.0,118310.0,0.86739146]
[1752904261744,0.98796923,118320.0,118310.0,0.70838]
[1752904261947,0.98796923,118320.0,118310.0,0.86739146]
[1752904264341,0.98796923,118320.0,118310.0,0.70838]
[1752904264543,0.98796923,118320.0,118310.0,0.86739146]
[1752904265745,0.98796923,118320.0,118310.0,0.70838]
[1752904265947,0.98796923,118320.0,118310.0,0.86739146]
[1752904271751,0.98796923,118320.0,118310.0,0.70838]
[1752904271953,0.98796923,118320.0,118310.0,0.60838]
[1752904275069,0.98796923,118320.0,118310.0,0.5153022]
[1752904275262,0.98796923,118320.0,118310.0,0.3446249]
[1752904275566,0.98796923,118320.0,118300.0,0.01851996]
[1752904275567,0.286031,118310.0,118300.0,0.01851996]
[1752904275763,0.82237207,118310.0,118300.0,0.59731996]
[1752904276866,0.82237207,118310.0,118300.0,0.60131996]
[1752904277066,0.82237207,118310.0,118300.0,0.60631996]
[1752904277266,0.89144987,118310.0,118300.0,0.60631996]
[1752904279263,0.89144987,118310.0,118300.0,0.70631996]
[1752904282465,0.89144987,118310.0,118300.0,0.72020996]
[1752904290472,0.73243841,118310.0,118300.0,0.72020996]
[1752904290675,0.53064987,118310.0,118300.0,0.88618142]
[1752904290876,0.53064987,118310.0,118300.0,0.88771142]
[1752904291068,0.89144987,118310.0,118300.0,0.88771142]
[1752904291373,0.53064987,118310.0,118300.0,0.88771142]
[1752904291577,0.89144987,118310.0,118300.0,0.88771142]
[1752904291872,0.89144987,118310.0,118300.0,0.88412142]
[1752904293071,0.73243841,118310.0,118300.0,0.72510996]
[1752904293271,0.89144987,118310.0,118300.0,0.88618142]
[1752904293578,0.89144987,118310.0,118300.0,0.88771142]
[1752904293966,0.89144987,118310.0,118300.0,0.88618142]
[1752904294177,0.89144987,118310.0,118300.0,0.88412142]
[1752904295275,0.89144987,118310.0,118300.0,0.87922142]
[1752904295470,0.73243841,118310.0,118300.0,0.87922142]
[1752904295665,0.89144987,118310.0,118300.0,0.87922142]
[1752904296476,0.73243841,118310.0,118300.0,0.87922142]
[1752904296669,0.89144987,118310.0,118300.0,0.72020996]
[1752904296872,0.89144987,118310.0,118300.0,0.87922142]
[1752904297272,0.53064987,118310.0,118300.0,0.88618142]
[1752904297871,0.53064987,118310.0,118300.0,1.04672288]
[1752904298980,0.53064987,118310.0,118300.0,0.87922142]
[1752904299178,0.89144987,118310.0,118300.0,0.87922142]
[1752904300281,0.89144987,118310.0,118300.0,0.72020996]
[1752904300480,0.89144987,118310.0,118300.0,0.87922142]
[1752904301179,0.53064987,118310.0,118300.0,0.87922142]
[1752904301578,0.73243841,118310.0,118300.0,0.87922142]
[1752904301776,0.89144987,118310.0,118300.0,0.87922142]
[1752904301981,0.53064987,118310.0,118300.0,0.87922142]
[1752904302181,0.89144987,118310.0,118300.0,0.87922142]
[1752904303082,0.89144987,118310.0,118300.0,0.72020996]
[1752904303281,0.89144987,118310.0,118300.0,0.87922142]
[1752904304784,0.89179239,118310.0,118300.0,0.87922142]
[1752904305988,0.89179239,118310.0,118300.0,0.72020996]
[1752904306176,0.89179239,118310.0,118300.0,0.14140996]
[1752904306380,0.89179239,118310.0,118300.0,0.62004996]